[Event "RUS-chT Men Rapid 2019"]
[Site "Sochi"]
[Date "2019.10.18"]
[Round "5.26"]
[White "Iljin, Artem"]
[Black "Gurvich, Vitaly"]
[Result "1-0"]
[ECO "A33"]
[WhiteElo "2509"]
[BlackElo "2278"]
[Annotator "ChessBase"]
[PlyCount "145"]
[EventDate "2019.10.18"]
[EventType "swiss"]
[EventCountry "RUS"]
[SourceTitle "playchess.com"]
[Source "ChessBase"]
[SourceQuality "1"]
[TimeControl "900+10"]

1. Nf3 {[%emt 0:00:00]} Nf6 {[%emt 0:00:00]} 2. c4 {[%emt 0:00:00]} c5 {[%emt 0:00:00]} 3. Nc3 {[%emt 0:00:03]} Nc6 {[%emt 0:00:06]} 4. d4 {[%emt 0:00:44]} cxd4 {[%emt 0:00:01]} 5. Nxd4 {[%emt 0:00:02]} e6 {[%emt 0:01:13]} 6. a3 {[%emt 0:00:06]} Qb6 {[%emt 0:00:34]} 7. e3 {[%emt 0:02:02]} Be7 {[%emt 0:00:34]} 8. g3 {[%emt 0:00:31]} O-O {[%emt 0:00:16]} 9. Bg2 {[%emt 0:00:20]} a6 {[%emt 0:02:02]} 10. O-O {[%emt 0:00:08]} Qc7 {[%emt 0:00:01]} 11. b3 {[%emt 0:02:03]} b6 {[%emt 0:01:54]} 12. Bb2 {[%emt 0:02:22]} Bb7 {[%emt 0:00:03]} 13. Nf3 {[%emt 0:01:48]} Rac8 {[%emt 0:00:24]} 14. Rc1 {[%emt 0:00:10]} Qb8 {[%emt 0:00:02]} 15. b4 {[%emt 0:02:51]} Rfd8 {[%emt 0:00:08]} 16. Na4 {[%emt 0:00:29]} Ba8 {[%emt 0:00:21]} 17. c5 {[%emt 0:00:16]} bxc5 {[%emt 0:00:07]} 18. Nxc5 {[%emt 0:00:18]} a5 {[%emt 0:00:01]} 19. Bxf6 {[%emt 0:02:27]} gxf6 {[%emt 0:00:01]} 20. Nd4 {[%emt 0:00:25]} Ne5 {[%emt 0:00:06]} 21. f4 {[%emt 0:00:38]} Ng6 {[%emt 0:00:38]} 22. Bxa8 {[%emt 0:00:07]} Qxa8 {[%emt 0:00:01]} 23. Qf3 {[%emt 0:00:42]} Qa7 {[%emt 0:00:26]} 24. Nd3 {[%emt 0:00:03]} Rxc1 {[%emt 0:00:23]} 25. Rxc1 {[%emt 0:00:01]} axb4 {[%emt 0:00:01]} 26. axb4 {[%emt 0:00:02]} Qa3 {[%emt 0:00:02]} 27. Qd1 {[%emt 0:00:15]} Qa2 {[%emt 0:00:27]} 28. b5 {[%emt 0:00:09]} Rb8 {[%emt 0:00:16]} 29. Qc2 {[%emt 0:00:05]} Qd5 {[%emt 0:00:12]} 30. Qc4 {[%emt 0:00:11]} Qe4 {[%emt 0:01:32]} 31. Kf2 {[%emt 0:00:01]} f5 {[%emt 0:00:02]} 32. Qc7 {[%emt 0:00:35]} Ra8 {[%emt 0:01:58]} 33. b6 {[%emt 0:00:03]} Nh4 {[%emt 0:00:01]} 34. b7 {[%emt 0:00:22]} Ra2+ {[%emt 0:00:58]} 35. Rc2 {[%emt 0:00:01]} Qg2+ {[%emt 0:00:18]} 36. Ke1 {[%emt 0:00:01]} Nf3+ {[%emt 0:03:27]} 37. Nxf3 {[%emt 0:00:04]} Rxc2 {[%emt 0:00:01]} 38. b8=Q+ {[%emt 0:00:04]} Bf8 {[%emt 0:00:02]} 39. Qxc2 {[%emt 0:00:23]} Qxc2 {[%emt 0:00:02]} 40. Nde5 {[%emt 0:00:27]} Qc5 {[%emt 0:00:51]} 41. Ke2 {[%emt 0:00:12]} Qd5 {[%emt 0:00:21]} 42. Qb2 {[%emt 0:00:13]} f6 {[%emt 0:00:25]} 43. Nd3 {[%emt 0:00:02]} Kg7 {[%emt 0:00:00]} 44. Qd4 {[%emt 0:00:05]} Qc6 {[%emt 0:00:06]} 45. h3 {[%emt 0:00:13]} h5 {[%emt 0:00:01]} 46. Qb2 {[%emt 0:00:13]} Be7 {[%emt 0:00:15]} 47. Kf2 {[%emt 0:00:06]} Qc4 {[%emt 0:00:12]} 48. Qe2 {[%emt 0:00:10]} Kh6 {[%emt 0:00:16]} 49. Nd4 {[%emt 0:00:19]} Qd5 {[%emt 0:00:14]} 50. Kg1 {[%emt 0:00:02]} Qa8 {[%emt 0:00:14]} 51. Kh2 {[%emt 0:00:03]} Qd5 {[%emt 0:00:16]} 52. g4 {[%emt 0:00:28]} fxg4 {[%emt 0:00:31]} 53. hxg4 {[%emt 0:00:01]} hxg4 {[%emt 0:00:03]} 54. Qxg4 {[%emt 0:00:01]} Qa2+ {[%emt 0:00:02]} 55. Qg2 {[%emt 0:00:06]} Qb1 {[%emt 0:00:03]} 56. f5 {[%emt 0:00:18]} Qb8+ {[%emt 0:00:37]} 57. Kh3 {[%emt 0:00:05]} Qe8 {[%emt 0:00:03]} 58. Qg4 {[%emt 0:00:05]} e5 {[%emt 0:00:17]} 59. Ne2 {[%emt 0:00:29]} d5 {[%emt 0:00:11]} 60. Ng3 {[%emt 0:00:02]} Qf7 {[%emt 0:00:03]} 61. Ne1 {[%emt 0:00:13]} Bc5 {[%emt 0:00:35]} 62. Ng2 {[%emt 0:00:01]} Kh7 {[%emt 0:00:08]} 63. Nh5 {[%emt 0:00:24]} Kh6 {[%emt 0:00:31]} 64. Ng7 {[%emt 0:00:16]} Kh7 {[%emt 0:00:30]} 65. Ne6 {[%emt 0:00:02]} Bf8 {[%emt 0:00:07]} 66. Qg6+ {[%emt 0:00:18]} Qxg6 {[%emt 0:00:03]} 67. Nxf8+ {[%emt 0:00:01]} Kh6 {[%emt 0:00:07]} 68. Nxg6 {[%emt 0:00:04]} Kg5 {[%emt 0:00:00]} 69. Ne7 {[%emt 0:00:02]} d4 {[%emt 0:00:01]} 70. exd4 {[%emt 0:00:06]} exd4 {[%emt 0:00:01]} 71. Kg3 {[%emt 0:00:02]} d3 {[%emt 0:00:00]} 72. Kf3 {[%emt 0:00:01]} d2 {[%emt 0:00:03]} 73. Ke2 {[%emt 0:00:01]} 1-0

[Event "RUS-chT Men Rapid 2019"]
[Site "Sochi"]
[Date "2019.10.18"]
[Round "5.27"]
[White "Chizhikov, Vladislav"]
[Black "Faizrakhmanov, Ramil"]
[Result "0-1"]
[ECO "B11"]
[WhiteElo "2267"]
[BlackElo "2434"]
[Annotator "NA"]
[PlyCount "110"]
[EventDate "2019.10.18"]
[EventType "swiss"]
[EventCountry "RUS"]
[SourceTitle "playchess.com"]
[Source "ChessBase"]
[SourceQuality "1"]
[TimeControl "900+10"]

1. e4 {[%emt 0:00:00]} c6 {[%emt 0:00:00]} 2. Nc3 {[%emt 0:00:00]} d5 {[%emt 0:00:00]} 3. Nf3 {[%emt 0:00:00]} Bg4 {[%emt 0:00:00]} 4. h3 {[%emt 0:00:00]} Bxf3 {[%emt 0:00:00]} 5. Qxf3 {[%emt 0:00:00]} e6 {[%emt 0:00:00]} 6. d3 {[%emt 0:00:05]} Nd7 {[%emt 0:00:05]} 7. g3 {[%emt 0:00:06]} Bc5 {[%emt 0:00:04]} 8. Bg2 {[%emt 0:00:03]} Ne7 {[%emt 0:00:04]} 9. O-O {[%emt 0:00:14]} O-O {[%emt 0:00:02]} 10. Qe2 {[%emt 0:01:21]} a5 {[%emt 0:00:28]} 11. Kh2 {[%emt 0:00:09]} a4 {[%emt 0:01:15]} 12. a3 {[%emt 0:00:05]} b5 {[%emt 0:00:34]} 13. e5 {[%emt 0:00:54]} Nb6 {[%emt 0:01:02]} 14. h4 {[%emt 0:03:32]} b4 {[%emt 0:01:07]} 15. axb4 {[%emt 0:00:08]} Bxb4 {[%emt 0:00:02]} 16. Qg4 {[%emt 0:00:07]} c5 {[%emt 0:01:13]} 17. Bg5 {[%emt 0:00:08]} Kh8 {[%emt 0:00:25]} 18. Nb5 {[%emt 0:00:56]} h6 {[%emt 0:00:25]} 19. Qh5 {[%emt 0:00:17]} Kg8 {[%emt 0:00:42]} 20. Bc1 {[%emt 0:05:05]} Nf5 {[%emt 0:01:32]} 21. Qg4 {[%emt 0:00:43]} Qd7 {[%emt 0:00:57]} 22. c4 {[%emt 0:00:15]} Rad8 {[%emt 0:00:13]} 23. Bf3 {[%emt 0:01:27]} dxc4 {[%emt 0:01:41]} 24. dxc4 {[%emt 0:00:02]} Qd3 {[%emt 0:00:14]} 25. Be2 {[%emt 0:00:29]} Qc2 {[%emt 0:00:09]} 26. Nd6 {[%emt 0:00:23]} Nxd6 {[%emt 0:00:13]} 27. exd6 {[%emt 0:00:02]} f5 {[%emt 0:00:21]} 28. Qh5 {[%emt 0:00:25]} Kh7 {[%emt 0:00:56]} 29. Bf4 {[%emt 0:00:27]} Qxb2 {[%emt 0:00:06]} 30. Bg5 {[%emt 0:00:39]} Rxd6 {[%emt 0:01:19]} 31. Be7 {[%emt 0:00:03]} Rfd8 {[%emt 0:00:29]} 32. Bxd8 {[%emt 0:00:48]} Rxd8 {[%emt 0:00:01]} 33. Rad1 {[%emt 0:00:02]} Rd4 {[%emt 0:00:35]} 34. Bd3 {[%emt 0:00:29]} Rxd3 {[%emt 0:02:47]} 35. Rxd3 {[%emt 0:00:02]} Nxc4 {[%emt 0:00:02]} 36. Rd8 {[%emt 0:00:10]} Ne3 {[%emt 0:00:16]} 37. Qe8 {[%emt 0:00:25]} Nxf1+ {[%emt 0:00:01]} 38. Kg1 {[%emt 0:00:01]} Qb1 {[%emt 0:01:42]} 39. Qg8+ {[%emt 0:00:17]} Kg6 {[%emt 0:00:01]} 40. Qxe6+ {[%emt 0:00:02]} Kh5 {[%emt 0:00:12]} 41. Qe2+ {[%emt 0:00:46]} Kg6 {[%emt 0:00:01]} 42. Qe8+ {[%emt 0:00:07]} Kh7 {[%emt 0:00:09]} 43. Qg8+ {[%emt 0:00:02]} Kg6 {[%emt 0:00:04]} 44. Rd6+ {[%emt 0:00:18]} Kh5 {[%emt 0:00:00]} 45. Qe8+ {[%emt 0:00:18]} Kg4 {[%emt 0:00:04]} 46. Qe2+ {[%emt 0:00:34]} Kh3 {[%emt 0:00:04]} 47. Rd1 {[%emt 0:00:01]} Nxg3 {[%emt 0:00:13]} 48. fxg3 {[%emt 0:00:06]} Qe4 {[%emt 0:00:00]} 49. Qf2 {[%emt 0:00:15]} Bc3 {[%emt 0:00:10]} 50. Qh2+ {[%emt 0:00:11]} Kg4 {[%emt 0:00:01]} 51. Qg2 {[%emt 0:00:16]} Qxg2+ {[%emt 0:00:13]} 52. Kxg2 {[%emt 0:00:00]} a3 {[%emt 0:00:01]} 53. Rf1 {[%emt 0:00:11]} a2 {[%emt 0:00:07]} 54. Rf4+ {[%emt 0:00:01]} Kh5 {[%emt 0:00:01]} 55. Rxf5+ {[%emt 0:00:01]} Kg6 {[%emt 0:00:01]} 0-1

[Event "RUS-chT Men Rapid 2019"]
[Site "Sochi"]
[Date "2019.10.18"]
[Round "5.28"]
[White "Samusenko, Maksim"]
[Black "Girshgorn, Leonid"]
[Result "0-1"]
[ECO "B06"]
[WhiteElo "2445"]
[BlackElo "2183"]
[Annotator "NA"]
[PlyCount "132"]
[EventDate "2019.10.18"]
[EventType "swiss"]
[EventCountry "RUS"]
[SourceTitle "playchess.com"]
[Source "ChessBase"]
[SourceQuality "1"]
[TimeControl "900+10"]

1. d4 {[%emt 0:00:00]} g6 {[%emt 0:00:00]} 2. e4 {[%emt 0:00:00]} Bg7 {[%emt 0:00:00]} 3. Nc3 {[%emt 0:00:01]} e6 {[%emt 0:00:00]} 4. Be3 {[%emt 0:00:11]} Ne7 {[%emt 0:00:00]} 5. Qd2 {[%emt 0:00:05]} d5 {[%emt 0:00:21]} 6. O-O-O {[%emt 0:00:50]} O-O {[%emt 0:01:08]} 7. Bh6 {[%emt 0:00:17]} dxe4 {[%emt 0:00:04]} 8. Bxg7 {[%emt 0:00:26]} Kxg7 {[%emt 0:00:02]} 9. Nxe4 {[%emt 0:00:02]} b6 {[%emt 0:00:13]} 10. h4 {[%emt 0:00:42]} Bb7 {[%emt 0:00:07]} 11. Ng3 {[%emt 0:00:59]} Qd5 {[%emt 0:01:16]} 12. Kb1 {[%emt 0:00:10]} h5 {[%emt 0:00:23]} 13. N1e2 {[%emt 0:00:42]} Nd7 {[%emt 0:00:42]} 14. Nf4 {[%emt 0:01:24]} Qa5 {[%emt 0:00:26]} 15. c3 {[%emt 0:01:27]} Nf6 {[%emt 0:00:12]} 16. Bd3 {[%emt 0:00:37]} c5 {[%emt 0:01:13]} 17. dxc5 {[%emt 0:03:35]} Qxc5 {[%emt 0:00:04]} 18. Bc2 {[%emt 0:00:48]} Rad8 {[%emt 0:01:08]} 19. Qe2 {[%emt 0:00:07]} Ned5 {[%emt 0:01:23]} 20. Nd3 {[%emt 0:00:11]} Qc7 {[%emt 0:00:23]} 21. Qd2 {[%emt 0:00:35]} b5 {[%emt 0:00:45]} 22. Qg5 {[%emt 0:00:23]} b4 {[%emt 0:02:34]} 23. cxb4 {[%emt 0:00:16]} Qc4 {[%emt 0:01:49]} 24. Bb3 {[%emt 0:00:43]} Qg4 {[%emt 0:00:10]} 25. Qe5 {[%emt 0:01:04]} Nxb4 {[%emt 0:01:45]} 26. Nxb4 {[%emt 0:00:07]} Qxb4 {[%emt 0:00:07]} 27. Nxh5+ {[%emt 0:00:14]} gxh5 {[%emt 0:00:01]} 28. Qg5+ {[%emt 0:00:00]} Kh7 {[%emt 0:00:07]} 29. Qxf6 {[%emt 0:00:04]} Be4+ {[%emt 0:00:06]} 30. Ka1 {[%emt 0:00:05]} Rxd1+ {[%emt 0:00:09]} 31. Rxd1 {[%emt 0:00:03]} Bg6 {[%emt 0:00:09]} 32. f3 {[%emt 0:01:56]} Rc8 {[%emt 0:00:39]} 33. Qg5 {[%emt 0:00:58]} Rc5 {[%emt 0:00:23]} 34. Qe3 {[%emt 0:00:19]} a5 {[%emt 0:00:45]} 35. a3 {[%emt 0:00:01]} Qb5 {[%emt 0:00:20]} 36. g4 {[%emt 0:00:31]} a4 {[%emt 0:00:24]} 37. Ba2 {[%emt 0:00:01]} Rc2 {[%emt 0:00:14]} 38. Qd4 {[%emt 0:00:12]} e5 39. Qb4 {[%emt 0:00:08]} Qc6 {[%emt 0:00:50]} 40. Qe1 {[%emt 0:00:30]} Qxf3 {[%emt 0:00:18]} 41. gxh5 {[%emt 0:00:06]} Qxh5 {[%emt 0:00:16]} 42. Bb1 {[%emt 0:00:11]} Rc6 {[%emt 0:00:47]} 43. Bxg6+ {[%emt 0:00:04]} Rxg6 {[%emt 0:00:02]} 44. Rd5 {[%emt 0:00:15]} Re6 {[%emt 0:00:16]} 45. Qe3 {[%emt 0:00:37]} Qxh4 {[%emt 0:00:17]} 46. Rxe5 {[%emt 0:00:11]} Rxe5 {[%emt 0:00:05]} 47. Qxe5 {[%emt 0:00:00]} Qg4 {[%emt 0:00:07]} 48. Qh2+ {[%emt 0:00:11]} Kg6 {[%emt 0:00:04]} 49. Ka2 {[%emt 0:00:07]} f5 {[%emt 0:00:06]} 50. Qd6+ {[%emt 0:00:16]} Kh5 {[%emt 0:00:02]} 51. Qe5 {[%emt 0:00:10]} Kh4 {[%emt 0:00:16]} 52. Qh2+ {[%emt 0:00:02]} Kg5 {[%emt 0:00:01]} 53. Qe5 {[%emt 0:00:02]} Qc4+ {[%emt 0:00:13]} 54. Ka1 {[%emt 0:00:04]} Qc1+ {[%emt 0:00:02]} 55. Ka2 {[%emt 0:00:01]} Qc4+ {[%emt 0:00:12]} 56. Ka1 {[%emt 0:00:01]} Kg4 {[%emt 0:00:07]} 57. Qg7+ {[%emt 0:00:34]} Kf3 {[%emt 0:00:03]} 58. Qb7+ {[%emt 0:00:13]} Qe4 {[%emt 0:00:03]} 59. Qb6 {[%emt 0:00:11]} f4 {[%emt 0:00:02]} 60. b4 {[%emt 0:00:18]} Qe1+ {[%emt 0:00:22]} 61. Kb2 {[%emt 0:00:09]} Qd2+ {[%emt 0:00:01]} 62. Kb1 {[%emt 0:00:19]} Qd1+ {[%emt 0:00:05]} 63. Kb2 {[%emt 0:00:04]} Qb3+ {[%emt 0:00:02]} 64. Kc1 {[%emt 0:00:08]} Qxa3+ {[%emt 0:00:01]} 65. Kc2 {[%emt 0:00:09]} Qb3+ {[%emt 0:00:01]} 66. Kd2 {[%emt 0:00:00]} Qe3+ {[%emt 0:00:07]} 0-1

[Event "RUS-chT Men Rapid 2019"]
[Site "Sochi"]
[Date "2019.10.19"]
[Round "6.1"]
[White "Grachev, Boris"]
[Black "Drygalov, Andrey"]
[Result "1/2-1/2"]
[ECO "D43"]
[WhiteElo "2621"]
[BlackElo "2484"]
[Annotator "ChessBase"]
[PlyCount "45"]
[EventDate "2019.10.18"]
[EventType "swiss"]
[EventCountry "RUS"]
[SourceTitle "playchess.com"]
[Source "ChessBase"]
[SourceQuality "1"]
[TimeControl "900+10"]

1. Nf3 {[%emt 0:00:00]} d5 {[%emt 0:00:00]} 2. d4 {[%emt 0:00:17]} Nf6 {[%emt 0:00:00]} 3. c4 {[%emt 0:00:01]} e6 {[%emt 0:00:00]} 4. Nc3 {[%emt 0:00:18]} c6 {[%emt 0:00:12]} 5. cxd5 {[%emt 0:01:16]} exd5 {[%emt 0:00:04]} 6. Bg5 {[%emt 0:00:01]} Be7 {[%emt 0:00:24]} 7. Qc2 {[%emt 0:00:08]} g6 {[%emt 0:00:18]} 8. Bxf6 {[%emt 0:00:25]} Bxf6 {[%emt 0:00:01]} 9. e4 {[%emt 0:00:01]} dxe4 {[%emt 0:00:53]} 10. Qxe4+ {[%emt 0:00:03]} Qe7 {[%emt 0:00:25]} 11. Bc4 {[%emt 0:00:15]} O-O {[%emt 0:00:59]} 12. Qxe7 {[%emt 0:00:40]} Bxe7 {[%emt 0:00:01]} 13. O-O {[%emt 0:00:02]} Bf5 {[%emt 0:00:51]} 14. Rfe1 {[%emt 0:00:21]} Bf6 {[%emt 0:00:04]} 15. h3 {[%emt 0:00:06]} h5 {[%emt 0:00:13]} 16. Ne5 {[%emt 0:02:14]} Nd7 {[%emt 0:03:14]} 17. Nxd7 {[%emt 0:04:32]} Bxd7 {[%emt 0:00:02]} 18. Ne4 {[%emt 0:00:02]} Be7 {[%emt 0:01:11]} 19. Nc5 {[%emt 0:00:22]} Bxc5 {[%emt 0:00:01]} 20. dxc5 {[%emt 0:00:01]} Rfe8 {[%emt 0:00:09]} 21. f4 {[%emt 0:00:54]} Bf5 {[%emt 0:01:34]} 22. Rad1 {[%emt 0:00:26]} Kf8 {[%emt 0:00:28]} 23. Kf2 {[%emt 0:01:07]} 1/2-1/2

[Event "RUS-chT Men Rapid 2019"]
[Site "Sochi"]
[Date "2019.10.19"]
[Round "6.2"]
[White "Lugovskoy, Maxim"]
[Black "Potkin, Vladimir"]
[Result "1/2-1/2"]
[ECO "B40"]
[WhiteElo "2436"]
[BlackElo "2583"]
[Annotator "ChessBase"]
[PlyCount "138"]
[EventDate "2019.10.18"]
[EventType "swiss"]
[EventCountry "RUS"]
[SourceTitle "playchess.com"]
[Source "ChessBase"]
[SourceQuality "1"]
[TimeControl "900+10"]

1. e4 {[%emt 0:00:00]} c5 {[%emt 0:00:00]} 2. Nf3 {[%emt 0:00:00]} e6 {[%emt 0:00:00]} 3. c3 {[%emt 0:00:22]} Nf6 {[%emt 0:00:00]} 4. e5 {[%emt 0:00:02]} Nd5 {[%emt 0:00:00]} 5. d4 {[%emt 0:00:01]} cxd4 {[%emt 0:00:02]} 6. cxd4 {[%emt 0:00:02]} d6 {[%emt 0:00:04]} 7. Bc4 {[%emt 0:00:03]} Be7 {[%emt 0:00:06]} 8. O-O {[%emt 0:00:05]} O-O {[%emt 0:00:04]} 9. Qe2 {[%emt 0:00:54]} Nc6 {[%emt 0:00:04]} 10. Rd1 {[%emt 0:00:19]} Na5 {[%emt 0:00:13]} 11. Bxd5 {[%emt 0:00:07]} exd5 {[%emt 0:00:02]} 12. Nc3 {[%emt 0:00:01]} Be6 {[%emt 0:00:03]} 13. Bf4 {[%emt 0:00:13]} a6 {[%emt 0:00:39]} 14. Rac1 {[%emt 0:00:23]} Rc8 {[%emt 0:01:02]} 15. h3 {[%emt 0:00:23]} Nc6 {[%emt 0:00:32]} 16. Qd2 {[%emt 0:00:53]} Re8 {[%emt 0:01:12]} 17. Ne2 {[%emt 0:00:12]} h6 {[%emt 0:01:20]} 18. Ng3 {[%emt 0:00:13]} dxe5 {[%emt 0:01:03]} 19. dxe5 {[%emt 0:00:12]} d4 {[%emt 0:00:28]} 20. Nh5 {[%emt 0:01:03]} Bd5 {[%emt 0:04:10]} 21. Nxd4 {[%emt 0:01:28]} Nxd4 {[%emt 0:00:25]} 22. Qxd4 {[%emt 0:00:42]} Rxc1 {[%emt 0:00:07]} 23. Bxc1 {[%emt 0:00:01]} Be6 {[%emt 0:00:30]} 24. Qa4 {[%emt 0:01:21]} Qc8 {[%emt 0:00:01]} 25. Be3 {[%emt 0:00:31]} b5 {[%emt 0:00:16]} 26. Qe4 {[%emt 0:01:00]} Bxa2 {[%emt 0:00:36]} 27. Rc1 {[%emt 0:00:56]} Qd7 {[%emt 0:00:03]} 28. Qf3 {[%emt 0:00:21]} Qe6 {[%emt 0:00:34]} 29. Nxg7 {[%emt 0:01:48]} Kxg7 {[%emt 0:00:40]} 30. Rc6 {[%emt 0:00:01]} Qd5 {[%emt 0:02:52]} 31. Qg4+ {[%emt 0:03:43]} Bg5 {[%emt 0:00:02]} 32. Rd6 {[%emt 0:02:18]} Qc4 {[%emt 0:01:29]} 33. Bxg5 {[%emt 0:00:00]} hxg5 {[%emt 0:00:04]} 34. Qxg5+ {[%emt 0:00:01]} Kf8 {[%emt 0:00:14]} 35. e6 {[%emt 0:00:00]} Qe4 {[%emt 0:00:45]} 36. Qh6+ {[%emt 0:00:47]} Kg8 37. Qg5+ Kf8 {[%emt 0:00:08]} 38. exf7 {[%emt 0:00:35]} Bxf7 {[%emt 0:00:02]} 39. Qh6+ {[%emt 0:00:08]} Kg8 40. Qg5+ Kf8 {[%emt 0:00:06]} 41. f4 {[%emt 0:00:11]} a5 {[%emt 0:00:43]} 42. Kh2 {[%emt 0:00:05]} a4 {[%emt 0:00:42]} 43. Qh6+ {[%emt 0:00:14]} Kg8 {[%emt 0:00:02]} 44. Qg5+ {[%emt 0:00:00]} Kf8 {[%emt 0:00:00]} 45. h4 {[%emt 0:00:30]} b4 {[%emt 0:00:04]} 46. h5 {[%emt 0:00:01]} Qe7 {[%emt 0:00:14]} 47. Rf6 {[%emt 0:00:06]} Qe4 {[%emt 0:00:33]} 48. Rf5 {[%emt 0:00:01]} Re6 {[%emt 0:00:17]} 49. h6 Qd4 {[%emt 0:00:17]} 50. Re5 {[%emt 0:00:47]} Rxe5 {[%emt 0:00:05]} 51. fxe5 {[%emt 0:00:06]} Qe4 {[%emt 0:00:10]} 52. Qd8+ {[%emt 0:00:14]} Be8 {[%emt 0:00:02]} 53. Qf6+ {[%emt 0:00:05]} Bf7 {[%emt 0:00:01]} 54. e6 {[%emt 0:00:18]} Qxe6 55. Qg7+ Ke8 {[%emt 0:00:22]} 56. h7 {[%emt 0:00:02]} Qd6+ {[%emt 0:00:01]} 57. Qg3 {[%emt 0:00:29]} Qh6+ {[%emt 0:00:05]} 58. Qh3 {[%emt 0:00:02]} Qf4+ {[%emt 0:00:05]} 59. Kh1 {[%emt 0:00:17]} Qf1+ {[%emt 0:00:02]} 60. Kh2 {[%emt 0:00:00]} Qf4+ {[%emt 0:00:01]} 61. Kg1 {[%emt 0:00:00]} Qc1+ {[%emt 0:00:01]} 62. Kf2 {[%emt 0:00:01]} Qd2+ {[%emt 0:00:27]} 63. Kg3 {[%emt 0:00:19]} Qe3+ {[%emt 0:00:04]} 64. Kh2 {[%emt 0:00:17]} Qf4+ {[%emt 0:00:01]} 65. g3 {[%emt 0:00:10]} Qd2+ {[%emt 0:00:06]} 66. Qg2 {[%emt 0:00:03]} Qh6+ {[%emt 0:00:02]} 67. Qh3 {[%emt 0:00:00]} Qd2+ {[%emt 0:00:03]} 68. Qg2 {[%emt 0:00:34]} Qh6+ {[%emt 0:00:02]} 69. Qh3 {[%emt 0:00:13]} Qd2+ {[%emt 0:00:02]} 1/2-1/2

[Event "RUS-chT Men Rapid 2019"]
[Site "Sochi"]
[Date "2019.10.19"]
[Round "6.3"]
[White "Savchenko, Boris"]
[Black "Vastrukhin, Oleg"]
[Result "1-0"]
[ECO "C18"]
[WhiteElo "2581"]
[BlackElo "2428"]
[Annotator "ChessBase"]
[PlyCount "149"]
[EventDate "2019.10.18"]
[EventType "swiss"]
[EventCountry "RUS"]
[SourceTitle "playchess.com"]
[Source "ChessBase"]
[SourceQuality "1"]
[TimeControl "900+10"]

1. e4 {[%emt 0:03:07]} e6 {[%emt 0:00:00]} 2. d4 {[%emt 0:00:02]} d5 {[%emt 0:00:00]} 3. Nc3 {[%emt 0:00:01]} Bb4 {[%emt 0:00:00]} 4. e5 {[%emt 0:00:02]} c5 {[%emt 0:00:00]} 5. a3 {[%emt 0:00:01]} Bxc3+ {[%emt 0:00:00]} 6. bxc3 {[%emt 0:00:01]} Nc6 {[%emt 0:00:00]} 7. Qg4 {[%emt 0:00:02]} g6 {[%emt 0:00:00]} 8. Nf3 {[%emt 0:00:01]} Qa5 {[%emt 0:00:07]} 9. Bd2 {[%emt 0:00:02]} c4 {[%emt 0:00:01]} 10. Be2 {[%emt 0:00:01]} Bd7 {[%emt 0:00:02]} 11. O-O {[%emt 0:00:07]} O-O-O {[%emt 0:00:40]} 12. Rfb1 {[%emt 0:00:28]} f5 {[%emt 0:00:16]} 13. exf6 {[%emt 0:01:26]} Nxf6 {[%emt 0:00:02]} 14. Qf4 {[%emt 0:00:13]} Rdf8 {[%emt 0:02:05]} 15. Be1 {[%emt 0:02:33]} Ne4 {[%emt 0:00:19]} 16. Qe3 {[%emt 0:00:04]} Qa4 {[%emt 0:01:57]} 17. Ra2 {[%emt 0:00:12]} Rf5 {[%emt 0:00:27]} 18. Ne5 {[%emt 0:00:39]} Nxe5 {[%emt 0:02:47]} 19. dxe5 {[%emt 0:00:03]} Qa5 {[%emt 0:00:17]} 20. a4 {[%emt 0:01:54]} Rhf8 {[%emt 0:02:35]} 21. Bg4 {[%emt 0:03:22]} Rf4 {[%emt 0:01:07]} 22. f3 {[%emt 0:00:11]} Qc5 {[%emt 0:01:26]} 23. Qxc5+ {[%emt 0:00:43]} Nxc5 {[%emt 0:00:02]} 24. Bd2 {[%emt 0:01:14]} Rxg4 {[%emt 0:02:29]} 25. fxg4 {[%emt 0:00:02]} Ne4 {[%emt 0:00:01]} 26. Rd1 {[%emt 0:00:47]} a5 {[%emt 0:00:19]} 27. Be1 {[%emt 0:01:34]} Kc7 {[%emt 0:00:16]} 28. Ra3 {[%emt 0:00:10]} g5 {[%emt 0:00:29]} 29. Bd2 {[%emt 0:00:23]} h6 {[%emt 0:00:02]} 30. Be3 {[%emt 0:00:01]} b6 {[%emt 0:01:31]} 31. Rf1 {[%emt 0:00:16]} Rxf1+ {[%emt 0:00:29]} 32. Kxf1 {[%emt 0:00:02]} Kb7 {[%emt 0:00:14]} 33. Ke1 {[%emt 0:00:26]} Ka6 {[%emt 0:00:05]} 34. Bd4 {[%emt 0:00:03]} Be8 {[%emt 0:00:07]} 35. Ra1 {[%emt 0:00:04]} Bc6 {[%emt 0:00:23]} 36. Ke2 {[%emt 0:00:03]} Bd7 {[%emt 0:00:08]} 37. Ke3 {[%emt 0:00:02]} Bc6 {[%emt 0:00:03]} 38. g3 {[%emt 0:00:40]} Be8 {[%emt 0:00:09]} 39. Rb1 {[%emt 0:00:06]} b5 {[%emt 0:00:17]} 40. axb5+ {[%emt 0:00:17]} Bxb5 {[%emt 0:00:01]} 41. Ra1 {[%emt 0:00:01]} a4 {[%emt 0:00:03]} 42. Ke2 {[%emt 0:00:02]} Be8 {[%emt 0:00:10]} 43. Kd1 {[%emt 0:00:01]} Kb7 {[%emt 0:00:28]} 44. Rb1+ {[%emt 0:00:06]} Kc7 {[%emt 0:00:01]} 45. Kc1 {[%emt 0:00:04]} Bg6 {[%emt 0:00:23]} 46. Rb5 {[%emt 0:00:06]} Be8 {[%emt 0:00:11]} 47. Ra5 {[%emt 0:00:03]} Bd7 {[%emt 0:00:02]} 48. Ra7+ {[%emt 0:00:08]} Kd8 {[%emt 0:00:05]} 49. Bb6+ {[%emt 0:00:20]} Ke8 {[%emt 0:00:02]} 50. Ra8+ {[%emt 0:00:02]} Kf7 {[%emt 0:00:10]} 51. Bd4 {[%emt 0:00:25]} Ke7 {[%emt 0:00:21]} 52. Rh8 {[%emt 0:00:04]} a3 {[%emt 0:00:20]} 53. Ra8 {[%emt 0:00:03]} Be8 {[%emt 0:00:08]} 54. Rxa3 {[%emt 0:00:03]} h5 {[%emt 0:00:11]} 55. Ra7+ {[%emt 0:00:54]} Kf8 {[%emt 0:00:01]} 56. gxh5 {[%emt 0:00:03]} Bxh5 {[%emt 0:00:01]} 57. Be3 {[%emt 0:00:13]} Bf3 {[%emt 0:00:13]} 58. Kb2 {[%emt 0:00:03]} g4 {[%emt 0:00:07]} 59. Bd4 {[%emt 0:00:06]} Bd1 {[%emt 0:00:05]} 60. Ra1 {[%emt 0:00:07]} Bf3 {[%emt 0:00:07]} 61. Ka3 {[%emt 0:00:20]} Ng5 {[%emt 0:00:18]} 62. Be3 {[%emt 0:00:05]} Nf7 {[%emt 0:00:22]} 63. Bf4 {[%emt 0:00:01]} Nd8 {[%emt 0:00:04]} 64. Kb4 {[%emt 0:00:02]} Kg7 {[%emt 0:00:13]} 65. Kc5 {[%emt 0:00:03]} Nf7 {[%emt 0:00:01]} 66. Ra6 {[%emt 0:00:05]} d4 {[%emt 0:00:10]} 67. Kxd4 {[%emt 0:00:23]} Bd5 {[%emt 0:00:01]} 68. Ra5 {[%emt 0:00:07]} Nd8 {[%emt 0:00:18]} 69. Rxd5 {[%emt 0:00:02]} exd5 {[%emt 0:00:01]} 70. Kxd5 Kf7 71. Kxc4 {[%emt 0:00:04]} Ke6 {[%emt 0:00:01]} 72. Kb5 {[%emt 0:00:01]} Kd5 {[%emt 0:00:08]} 73. c4+ {[%emt 0:00:01]} Kd4 {[%emt 0:00:01]} 74. c5 {[%emt 0:00:01]} Kd5 {[%emt 0:00:01]} 75. c4+ {[%emt 0:00:03]} 1-0